lending/lending_fUSD_20250131
["ID","MTS","AMOUNT","RATE_DAILY","PERIOD"]
[351012163,1738285845513,-500.0,0.00019178,2]
[351012165,1738285845523,-1893.65,0.00019178,2]
[351012167,1738285845532,-504.72709998,0.00019178,2]
[351012169,1738285845541,-500.0,0.00019178,2]
[351012171,1738285845551,-500.0,0.00019178,2]
[351012173,1738285845560,-517.20862192,0.00019178,2]
[351012175,1738285845569,-1040.31,0.00019178,2]
[351012177,1738285845579,-775.01,0.00019178,2]
[351012179,1738285845588,-2935.41,0.00019178,2]
[351012181,1738285845598,-500.0,0.00019178,2]
[351012183,1738285845607,-500.0,0.00019178,2]
[351012185,1738285845618,-500.0,0.00019178,2]
[351012187,1738285845627,-998.41,0.00019178,2]
[351012189,1738285845637,-732.59,0.00019178,2]
[351012191,1738285845646,-2385.96,0.00019178,2]
[351012193,1738285845656,-500.0,0.00019178,2]
[351012195,1738285845665,-1113.33,0.00019178,2]
[351012197,1738285845674,-500.0,0.00019178,2]
[351012199,1738285845684,-500.0,0.00019178,2]
[351012201,1738285845694,-500.0,0.00019178,2]
[351012203,1738285845703,-1990.6,0.00019178,2]
[351012206,1738285845713,-500.0,0.00019178,2]
[351012207,1738285845722,-520.60383679,0.00019178,2]
[351012210,1738285845731,-500.0,0.00019178,2]
[351012212,1738285845741,-1902.47,0.00019178,2]
[351012214,1738285845750,-500.0,0.00019178,2]
[351012216,1738285845760,-500.0,0.00019178,2]
[351012218,1738285845770,-3963.38,0.00019178,2]
[351012220,1738285845779,-500.0,0.00019178,2]
[351012222,1738285845788,-190.76326394,0.00019178,2]
[351012224,1738285845798,-1486.97,0.00019178,2]
[351012226,1738285845808,-500.0,0.00019178,2]
[351012228,1738285845818,-500.0,0.00019178,2]
[351012230,1738285845828,-159.317424,0.00019178,2]
[351012232,1738285845838,-500.0,0.00019178,2]
[351012234,1738285845848,-693.44,0.00019178,2]
[351012236,1738285845858,-500.0,0.00019178,2]
[351012238,1738285845868,-2334.67,0.00019178,2]
[351012240,1738285845878,-968.27,0.00019178,2]
[351012242,1738285845888,-806.67,0.00019178,2]
[351012244,1738285845897,-483.78135192,0.00019178,2]
[351012246,1738285845907,-696.31,0.00019178,2]
[351012248,1738285845916,-2163.39,0.00019178,2]
[351012250,1738285845926,-2891.56,0.00019178,2]
[351012252,1738285845935,-500.0,0.00019178,2]
[351012254,1738285845945,-500.0,0.00019178,2]
[351012257,1738285845954,-500.0,0.00019178,2]
[351012259,1738285845965,-500.0,0.00019178,2]
[351012261,1738285845974,-608.89,0.00019178,2]
[351012263,1738285845984,-500.0,0.00019178,2]
[351012265,1738285845994,-1180.04,0.00019178,2]
[351012266,1738285846003,-500.0,0.00019178,2]
[351012269,1738285846014,-2121.57,0.00019178,2]
[351012271,1738285846024,-2596.62,0.00019178,2]
[351012273,1738285846034,-1064.3,0.00019178,2]
[351012275,1738285846043,-500.0,0.00019178,2]
[351012277,1738285846053,-1365.32,0.00019178,2]
[351012279,1738285846063,-500.0,0.00019178,2]
[351012281,1738285846072,-1960.81,0.00019178,2]
[351012283,1738285846082,-3311.05,0.00019178,2]
[351012285,1738285846091,-2659.2,0.00019178,2]
[351012287,1738285846102,-2534.94,0.00019178,2]
[351012289,1738285846111,-1901.58,0.00019178,2]
[351012291,1738285846121,-500.0,0.00019178,2]
[351012294,1738285846131,-500.0,0.00019178,2]
[351012297,1738285846142,-555.31,0.00019178,2]
[351012300,1738285846151,-951.44,0.00019178,2]
[351012303,1738285846162,-500.0,0.00019178,2]
[351012306,1738285846172,-500.0,0.00019178,2]
[351012310,1738285846181,-1111.96,0.00019178,2]
[351012313,1738285846192,-1785.61,0.00019178,2]
[351012316,1738285846201,-500.0,0.00019178,2]
[351012319,1738285846211,-964.96,0.00019178,2]
[351012322,1738285846221,-3049.76,0.00019178,2]
[351012325,1738285846231,-781.54,0.00019178,2]
[351012327,1738285846240,-3516.21,0.00019178,2]
[351012330,1738285846251,-1561.42,0.00019178,2]
[351012332,1738285846261,-2415.15,0.00019178,2]
[351012334,1738285846271,-6492.32,0.00019178,2]
[351012336,1738285846280,-500.0,0.00019178,2]
[351012338,1738285846289,-500.0,0.00019178,2]
[351012339,1738285846299,-1447.94,0.00019178,2]
[351012341,1738285846308,-500.0,0.00019178,2]
[351012343,1738285846317,-1966.23,0.00019178,2]
[351012345,1738285846327,-2481.09,0.00019178,2]
[351012347,1738285846337,-500.0,0.00019178,2]
[351012349,1738285846346,-500.0,0.00019178,2]
[351012351,1738285846355,-500.0,0.00019178,2]
[351012353,1738285846366,-500.0,0.00019178,2]
[351012355,1738285846376,-1401.99,0.00019178,2]
[351012357,1738285846385,-2500.45,0.00019178,2]
[351012359,1738285846395,-6241.54,0.00019178,2]
[351012361,1738285846404,-2846.15,0.00019178,2]
[351012373,1738285846510,-4209.78,0.00019178,2]
[351012375,1738285846520,-500.0,0.00019178,2]
[351012378,1738285846530,-502.32394574,0.00019178,2]
[351012379,1738285846540,-2172.56,0.00019178,2]
[351012381,1738285846549,-500.0,0.00019178,2]
[351012383,1738285846558,-2330.8,0.00019178,2]
[351012385,1738285846569,-500.0,0.00019178,2]
[351012386,1738285846578,-995.54,0.00019178,2]
[351012388,1738285846588,-500.0,0.00019178,2]
[351012390,1738285846597,-2168.69,0.00019178,2]
[351012392,1738285846606,-500.0,0.00019178,2]
[351012393,1738285846616,-500.0,0.00019178,2]
[351012395,1738285846625,-953.84,0.00019178,2]
[351012397,1738285846634,-3136.45,0.00019178,2]
[351012399,1738285846644,-1318.83,0.00019178,2]
[351012401,1738285846653,-454.6425229,0.00019178,2]
[351012403,1738285846662,-2712.34,0.00019178,2]
[351012405,1738285846671,-500.0,0.00019178,2]
[351012406,1738285846681,-500.0,0.00019178,2]
[351012408,1738285846695,-1816.35,0.00019178,2]
[351012410,1738285846704,-500.0,0.00019178,2]
[351012412,1738285846713,-654.27,0.00019178,2]
[351012414,1738285846722,-502.17856262,0.00019178,2]
[351012416,1738285846731,-947.97,0.00019178,2]
[351012417,1738285846741,-13353.01,0.00019178,2]
[351012419,1738285846751,-1949.13,0.00019178,2]
[351012421,1738285846761,-7005.13,0.00019178,2]
[351012423,1738285846770,-500.0,0.00019178,2]
[351012425,1738285846779,-2042.75,0.00019178,2]
[351012426,1738285846788,-1049.25,0.00019178,2]
[351012428,1738285846797,-2427.53,0.00019178,2]
[351012430,1738285846807,-515.73,0.00019178,2]
[351012432,1738285846816,-500.0,0.00019178,2]
[351012434,1738285846829,-500.0,0.00019178,2]
[351012435,1738285846838,-500.0,0.00019178,2]
[351012437,1738285846847,-500.0,0.00019178,2]
[351012439,1738285846857,-637.51,0.00019178,2]
[351012441,1738285846866,-1442.58,0.00019178,2]
[351012443,1738285846875,-10450.93,0.00019178,2]
[351012445,1738285846885,-4744.86,0.00019178,2]
[351012446,1738285846894,-544.19841357,0.00019178,2]
[351012448,1738285846903,-1501.63,0.00019178,2]
[351012450,1738285846913,-500.0,0.00019178,2]
[351012452,1738285846924,-500.0,0.00019178,2]
[351012454,1738285846934,-4383.49,0.00019178,2]
[351012456,1738285846943,-500.0,0.00019178,2]
[351012457,1738285846953,-500.0,0.00019178,2]
[351012459,1738285846962,-1165.04,0.00019178,2]
[351012461,1738285846971,-500.0,0.00019178,2]
[351012463,1738285846980,-500.0,0.00019178,2]
[351012465,1738285846989,-500.0,0.00019178,2]
[351012467,1738285846998,-9167.88,0.00019178,2]
[351012469,1738285847009,-500.0,0.00019178,2]
[351012471,1738285847017,-500.0,0.00019178,2]
[351012472,1738285847026,-2328.11,0.00019178,2]
[351012474,1738285847035,-500.0,0.00019178,2]
[351012476,1738285847045,-500.0,0.00019178,2]
[351012478,1738285847054,-1050.3,0.00019178,2]
[351012480,1738285847063,-500.0,0.00019178,2]
[351012481,1738285847072,-8392.33,0.00019178,2]
[351012483,1738285847081,-500.0,0.00019178,2]
[351012485,1738285847090,-500.0,0.00019178,2]
[351012487,1738285847099,-500.0,0.00019178,2]
[351012489,1738285847111,-500.0,0.00019178,2]
[351012491,1738285847120,-500.0,0.00019178,2]
[351012492,1738285847130,-500.0,0.00019178,2]
[351012494,1738285847139,-2152.93,0.00019178,2]
[351012496,1738285847148,-5040.14,0.00019178,2]
[351012498,1738285847158,-945.45,0.00019178,2]
[351012500,1738285847167,-801.03,0.00019178,2]
[351012502,1738285847176,-1028.7,0.00019178,2]
[351012504,1738285847185,-500.0,0.00019178,2]
[351012505,1738285847194,-2424.94,0.00019178,2]
[351012507,1738285847203,-3027.35,0.00019178,2]
[351012509,1738285847212,-500.0,0.00019178,2]
[351012511,1738285847221,-3116.32,0.00019178,2]
[351012513,1738285847230,-730.8,0.00019178,2]
[351012515,1738285847239,-835.66,0.00019178,2]
[351012517,1738285847251,-714.43,0.00019178,2]
[351012519,1738285847262,-1204.71,0.00019178,2]
[351012520,1738285847271,-500.0,0.00019178,2]
[351012522,1738285847280,-500.0,0.00019178,2]
[351012524,1738285847290,-500.0,0.00019178,2]
[351012526,1738285847299,-1258.67,0.00019178,2]
[351012527,1738285847308,-500.0,0.00019178,2]
[351012528,1738285847317,-500.0,0.00019178,2]
[351012529,1738285847327,-1463.86,0.00019178,2]
[351012530,1738285847336,-500.0,0.00019178,2]
[351012531,1738285847345,-649.74428317,0.00019178,2]
[351012532,1738285847354,-500.0,0.00019178,2]
[351012534,1738285847365,-500.0,0.00019178,2]
[351012536,1738285847374,-720.96,0.00019178,2]
[351012537,1738285847384,-9886.34,0.00019178,2]
[351012539,1738285847394,-500.0,0.00019178,2]
[351012540,1738285847406,-629.88,0.00019178,2]
[351012541,1738285847415,-792.12,0.00019178,2]
[351012542,1738285847425,-793.23,0.00019178,2]
[351012543,1738285847435,-500.0,0.00019178,2]
[351012544,1738285847445,-971.18,0.00019178,2]
[351012545,1738285847455,-500.0,0.00019178,2]
[351012546,1738285847464,-500.0,0.00019178,2]
[351012547,1738285847473,-4544.77,0.00019178,2]
[351012548,1738285847483,-500.0,0.00019178,2]
[351012549,1738285847492,-895.23,0.00019178,2]
[351012550,1738285847502,-3260.69,0.00019178,2]
[351012551,1738285847511,-935.18,0.00019178,2]
[351012552,1738285847521,-500.0,0.00019178,2]
[351012553,1738285847532,-2474.38,0.00019178,2]
[351012554,1738285847542,-2169.07,0.00019178,2]
[351012555,1738285847551,-500.0,0.00019178,2]
[351012556,1738285847560,-955.19,0.00019178,2]
[351012557,1738285847570,-500.0,0.00019178,2]
[351012558,1738285847579,-2212.29,0.00019178,2]
[351012559,1738285847589,-500.0,0.00019178,2]
[351012560,1738285847598,-500.0,0.00019178,2]
[351012561,1738285847607,-288.95868636,0.00019178,2]
[351012562,1738285847617,-5370.63,0.00019178,2]
[351012563,1738285847626,-500.0,0.00019178,2]
[351012564,1738285847635,-500.0,0.00019178,2]
[351012566,1738285847645,-3459.57,0.00019178,2]
[351012567,1738285847654,-7503.59,0.00019178,2]
[351012569,1738285847663,-2705.46,0.00019178,2]
[351012571,1738285847673,-516.64763975,0.00019178,2]
[351012573,1738285847683,-3500.93,0.00019178,2]
[351012574,1738285847693,-500.0,0.00019178,2]
[351012575,1738285847702,-3443.61,0.00019178,2]
[351012576,1738285847712,-500.0,0.00019178,2]
[351012577,1738285847721,-1800.76,0.00019178,2]
[351012578,1738285847731,-500.0,0.00019178,2]
[351012579,1738285847741,-500.0,0.00019178,2]
[351012580,1738285847752,-657.96,0.00019178,2]
[351012581,1738285847761,-500.0,0.00019178,2]
[351012582,1738285847771,-1087.73,0.00019178,2]
[351012583,1738285847780,-3107.04,0.00019178,2]
[351012584,1738285847789,-1774.18,0.00019178,2]
[351012585,1738285847799,-500.0,0.00019178,2]
[351012586,1738285847808,-924.39,0.00019178,2]
[351012587,1738285847818,-2012.09,0.00019178,2]
[351012588,1738285847828,-500.0,0.00019178,2]
[351012589,1738285847838,-1119.56,0.00019178,2]
[351012590,1738285847848,-500.0,0.00019178,2]
[351012591,1738285847858,-500.0,0.00019178,2]
[351012592,1738285847867,-500.0,0.00019178,2]
[351012593,1738285847877,-1501.25,0.00019178,2]
[351012594,1738285847887,-500.0,0.00019178,2]
[351012595,1738285847896,-500.0,0.00019178,2]
[351012596,1738285847906,-500.0,0.00019178,2]
[351012597,1738285847916,-473.25987714,0.00019178,2]
[351012598,1738285847926,-500.0,0.00019178,2]
[351012599,1738285847936,-500.0,0.00019178,2]
[351012600,1738285847946,-1538.9,0.00019178,2]
[351012601,1738285847956,-2072.53,0.00019178,2]
[351012602,1738285847966,-500.0,0.00019178,2]
[351012603,1738285847976,-5171.16,0.00019178,2]
[351012604,1738285847986,-500.0,0.00019178,2]
[351012605,1738285847996,-500.0,0.00019178,2]
[351012606,1738285848007,-8283.2,0.00019178,2]
[351012607,1738285848017,-777.85,0.00019178,2]
[351012608,1738285848027,-1012.67,0.00019178,2]
[351012609,1738285848038,-2157.73,0.00019178,2]
[351012610,1738285848048,-500.0,0.00019178,2]
[351012611,1738285848059,-1539.98,0.00019178,2]
[351012612,1738285848069,-1966.36,0.00019178,2]
[351012613,1738285848079,-500.0,0.00019178,2]
[351012614,1738285848090,-500.0,0.00019178,2]
[351012615,1738285848100,-973.72,0.00019178,2]
[351012616,1738285848111,-500.0,0.00019178,2]
[351012617,1738285848121,-500.0,0.00019178,2]
[351012618,1738285848130,-881.7,0.00019178,2]
[351012619,1738285848140,-500.0,0.00019178,2]
[351012620,1738285848150,-1884.57,0.00019178,2]
[351012621,1738285848160,-4000.0,0.00019178,2]
[351012622,1738285848170,-150.49,0.00019178,2]
[351012623,1738285848179,-156.38,0.00019198,2]
[351012624,1738285848191,-269.22663257,0.00019205,2]
[351012625,1738285848201,-150.16,0.00019206,2]
[351012626,1738285848211,-979.17601688,0.00019216,2]
[351012627,1738285848220,-150.0,0.00019232,2]
[351012628,1738285848230,-150.0,0.00019232,2]
[351012629,1738285848239,-153.578,0.00019232,2]
[351012630,1738285848249,-205.571,0.00019232,2]
[351012631,1738285848259,-150.217,0.00019232,2]
[351012632,1738285848269,-1271.0,0.00019232,2]
[351012633,1738285848278,-2021.0,0.00019232,2]
[351012634,1738285848288,-637.0,0.00019232,2]
[351012635,1738285848297,-150.0,0.00019232,2]
[351012636,1738285848306,-568.0,0.00019232,2]
[351012637,1738285848316,-1866.0,0.00019232,2]
[351012638,1738285848325,-907.0,0.00019232,2]
[351012639,1738285848334,-2951.0,0.00019232,2]
[351012640,1738285848344,-782.0,0.00019232,2]
[351012641,1738285848355,-1263.0,0.00019232,2]
[351012642,1738285848366,-538.0,0.00019232,2]
[351012643,1738285848377,-150.487,0.00019232,2]
[351012644,1738285848387,-545.995,0.00019232,2]
[351012645,1738285848397,-3908.0,0.00019232,2]
[351012646,1738285848407,-150.0,0.00019232,2]
[351012647,1738285848419,-1006.0,0.00019232,2]
[351012648,1738285848429,-1107.0,0.00019232,2]
[351012649,1738285848440,-152.0,0.00019234,5]
[351012650,1738285848451,-13224.22327818,0.00019252,2]
[351012651,1738285848462,-191.55,0.00019257,2]
[351012652,1738285848477,-150.0,0.00019271,2]
[351012653,1738285848488,-150.0,0.0001928,2]
[351012654,1738285848499,-979.17601688,0.00019285,2]
[351012655,1738285848510,-269.22663257,0.00019288,2]
[351012656,1738285848520,-150.0,0.0001929,2]
[351012657,1738285848530,-160.06095142,0.00019297,2]
[351012658,1738285848540,-150.0,0.00019299,2]
[351012659,1738285848551,-150.0,0.000193,2]
[351012660,1738285848562,-150.0,0.000193,2]
[351012661,1738285848573,-150.0,0.00019303,2]
[351012662,1738285848592,-151.14570161,0.00019303,2]
[351012663,1738285848605,-150.0,0.00019306,2]
[351012664,1738285848616,-150.0,0.00019314,2]
[351012665,1738285848626,-150.0,0.00019315,2]
[351012666,1738285848637,-558.9,0.00019315,3]
[351012667,1738285848647,-500.0,0.00019315,3]
[351012668,1738285848657,-667.67,0.00019315,3]
[351012669,1738285848667,-754.76,0.00019315,3]
[351012670,1738285848677,-500.0,0.00019315,3]
[351012671,1738285848687,-500.0,0.00019315,3]
[351012672,1738285848697,-556.35,0.00019315,3]
[351012673,1738285848707,-500.0,0.00019315,3]
[351012674,1738285848717,-500.0,0.00019315,3]
[351012675,1738285848727,-1022.28,0.00019315,3]
[351012676,1738285848737,-500.0,0.00019315,3]
[351012677,1738285848746,-500.0,0.00019315,3]
[351012678,1738285848758,-500.0,0.00019315,3]
[351012679,1738285848768,-510.81,0.00019315,3]
[351012680,1738285848779,-500.0,0.00019315,3]
[351012681,1738285848789,-500.0,0.00019315,3]
[351012682,1738285848800,-786.29,0.00019315,3]
[351012683,1738285848810,-500.0,0.00019315,3]
[351012684,1738285848820,-500.0,0.00019315,3]
[351012685,1738285848830,-548.19,0.00019315,3]
[351012686,1738285848841,-500.0,0.00019315,3]
[351012687,1738285848850,-364.37241898,0.00019315,3]
[351012688,1738285848861,-500.0,0.00019315,3]
[351012689,1738285848871,-500.0,0.00019315,3]
[351012690,1738285848881,-500.0,0.00019315,3]
[351012691,1738285848891,-500.0,0.00019315,3]
[351012692,1738285848902,-205.20849031,0.00019315,3]
[351012693,1738285848912,-500.0,0.00019315,3]
[351012694,1738285848922,-500.0,0.00019315,3]
[351012695,1738285848932,-500.0,0.00019315,3]
[351012696,1738285848943,-500.0,0.00019315,3]
[351012697,1738285848953,-500.0,0.00019315,3]
[351012698,1738285848963,-500.0,0.00019315,3]
[351012699,1738285848973,-500.0,0.00019315,3]
[351012700,1738285848983,-500.0,0.00019315,3]
[351012701,1738285848993,-526.2,0.00019315,3]
[351012702,1738285849003,-500.0,0.00019315,3]
[351012703,1738285849014,-500.0,0.00019315,3]
[351012704,1738285849024,-500.0,0.00019315,3]
[351012705,1738285849034,-500.0,0.00019315,3]
[351012706,1738285849045,-525.21,0.00019315,3]
[351012707,1738285849055,-527.07,0.00019315,3]
[351012708,1738285849065,-745.17,0.00019315,3]
[351012709,1738285849075,-925.47,0.00019315,3]
[351012710,1738285849085,-500.0,0.00019315,3]
[351012711,1738285849095,-500.0,0.00019315,3]
[351012712,1738285849106,-500.0,0.00019315,3]
[351012713,1738285849116,-2061.861226,0.00019315,3]
[351012714,1738285849127,-500.0,0.00019315,3]
[351012715,1738285849137,-1806.37,0.00019315,3]
[351012716,1738285849148,-591.54,0.00019315,3]
[351012717,1738285849158,-2053.2,0.00019315,3]
[351012718,1738285849168,-1698.45,0.00019315,3]
[351012719,1738285849178,-500.0,0.00019315,3]
[351012720,1738285849189,-500.0,0.00019315,3]
[351012721,1738285849199,-500.0,0.00019315,3]
[351012722,1738285849210,-651.45,0.00019315,3]
[351012723,1738285849221,-500.0,0.00019315,3]
[351012724,1738285849231,-559.93,0.00019315,3]
[351012725,1738285849242,-500.0,0.00019315,3]
[351012726,1738285849252,-500.0,0.00019315,3]
[351012727,1738285849263,-500.0,0.00019315,3]
[351012728,1738285849274,-500.0,0.00019315,3]
[351012729,1738285849284,-1256.13,0.00019315,3]
[351012730,1738285849294,-599.1,0.00019315,3]
[351012731,1738285849304,-500.0,0.00019315,3]
[351012732,1738285849314,-500.0,0.00019315,3]
[351012733,1738285849324,-2658.898062,0.00019315,3]
[351012734,1738285849334,-500.0,0.00019315,3]
[351012735,1738285849344,-1261.22,0.00019315,3]
[351012736,1738285849354,-500.0,0.00019315,3]
[351012737,1738285849369,-1053.91,0.00019315,3]
[351012738,1738285849379,-462.09215977,0.00019315,3]
[351012739,1738285849389,-500.0,0.00019315,3]
[351012740,1738285849399,-500.0,0.00019315,3]
[351012741,1738285849410,-2378.33,0.00019315,3]
[351012742,1738285849420,-1647.42,0.00019315,3]
[351012743,1738285849430,-528.13,0.00019315,3]
[351012744,1738285849443,-500.0,0.00019315,3]
[351012745,1738285849453,-500.0,0.00019315,3]
[351012746,1738285849463,-500.0,0.00019315,3]
[351012747,1738285849473,-830.8,0.00019315,3]
[351012748,1738285849483,-646.58,0.00019315,3]
[351012749,1738285849493,-500.0,0.00019315,3]
[351012750,1738285849502,-500.0,0.00019315,3]
[351012751,1738285849511,-1768.56,0.00019315,3]
[351012752,1738285849521,-827.02,0.00019315,3]
[351012753,1738285849531,-500.0,0.00019315,3]
[351012754,1738285849541,-500.0,0.00019315,3]
[351012755,1738285849551,-500.0,0.00019315,3]
[351012756,1738285849560,-500.0,0.00019315,3]
[351012757,1738285849571,-500.0,0.00019315,3]
[351012758,1738285849581,-500.0,0.00019315,3]
[351012759,1738285849591,-1180.08,0.00019315,3]
[351012760,1738285849602,-1257.92,0.00019315,3]
[351012761,1738285849612,-500.0,0.00019315,3]
[351012762,1738285849622,-1066.59,0.00019315,3]
[351012763,1738285849632,-500.0,0.00019315,3]
[351012764,1738285849641,-500.0,0.00019315,3]
[351012765,1738285849652,-673.01,0.00019315,3]
[351012766,1738285849662,-500.0,0.00019315,3]
[351012767,1738285849672,-500.0,0.00019315,3]
[351012768,1738285849681,-2355.23,0.00019315,3]
[351012769,1738285849691,-500.0,0.00019315,3]
[351012770,1738285849700,-811.38,0.00019315,3]
[351012771,1738285849710,-500.0,0.00019315,3]
[351012772,1738285849720,-500.0,0.00019315,3]
[351012773,1738285849729,-882.78,0.00019315,3]
[351012774,1738285849739,-500.0,0.00019315,3]
[351012775,1738285849748,-501.31,0.00019315,3]
[351012776,1738285849758,-500.0,0.00019315,3]
[351012777,1738285849768,-500.0,0.00019315,3]
[351012778,1738285849777,-500.0,0.00019315,3]
[351012779,1738285849787,-500.0,0.00019315,3]
[351012780,1738285849797,-1154.0,0.00019315,3]
[351012781,1738285849806,-500.0,0.00019315,3]
[351012782,1738285849816,-1504.22,0.00019315,3]
[351012783,1738285849825,-842.84,0.00019315,3]
[351012784,1738285849835,-785.04,0.00019315,3]
[351012785,1738285849845,-246.32435845,0.00019315,3]
[351012786,1738285849855,-500.0,0.00019315,3]
[351012787,1738285849865,-500.0,0.00019315,3]
[351012788,1738285849875,-500.0,0.00019315,3]
[351012789,1738285849884,-500.0,0.00019315,3]
[351012790,1738285849894,-1047.38,0.00019315,3]
[351012791,1738285849904,-500.0,0.00019315,3]
[351012792,1738285849914,-883.19,0.00019315,3]
[351012793,1738285849924,-1659.64,0.00019315,3]
[351012794,1738285849934,-500.0,0.00019315,3]
[351012795,1738285849944,-500.0,0.00019315,3]
[351012796,1738285849953,-500.0,0.00019315,3]
[351012797,1738285849963,-579.72222693,0.00019315,3]
[351012798,1738285849973,-500.0,0.00019315,3]
[351012799,1738285849982,-500.0,0.00019315,3]
[351012800,1738285849992,-630.33,0.00019315,3]
[351012801,1738285850001,-769.55,0.00019315,3]
[351012802,1738285850011,-855.99,0.00019315,3]
[351012803,1738285850021,-1537.34,0.00019315,3]
[351012804,1738285850030,-942.97,0.00019315,3]
[351012805,1738285850040,-779.19,0.00019315,3]
[351012806,1738285850050,-500.0,0.00019315,3]
[351012807,1738285850060,-668.93,0.00019315,3]
[351012808,1738285850069,-500.0,0.00019315,3]
[351012809,1738285850079,-514.26899668,0.00019315,3]
[351012810,1738285850089,-571.93,0.00019315,3]
[351012811,1738285850099,-663.1,0.00019315,3]
[351012812,1738285850108,-500.0,0.00019315,3]
[351012813,1738285850119,-500.0,0.00019315,3]
[351012814,1738285850129,-500.0,0.00019315,3]
[351012815,1738285850140,-500.0,0.00019315,3]
[351012816,1738285850150,-500.0,0.00019315,3]
[351012817,1738285850160,-1241.02,0.00019315,3]
[351012818,1738285850170,-987.56,0.00019315,3]
[351012819,1738285850180,-500.0,0.00019315,3]
[351012820,1738285850190,-500.0,0.00019315,3]
[351012821,1738285850201,-768.56,0.00019315,3]
[351012822,1738285850211,-500.0,0.00019315,3]
[351012823,1738285850221,-500.0,0.00019315,3]
[351012824,1738285850231,-1033.99,0.00019315,3]
[351012825,1738285850241,-500.0,0.00019315,3]
[351012826,1738285850251,-500.0,0.00019315,3]
[351012827,1738285850261,-680.74,0.00019315,3]
[351012828,1738285850271,-698.59,0.00019315,3]
[351012829,1738285850281,-823.59,0.00019315,3]
[351012830,1738285850291,-500.0,0.00019315,3]
[351012831,1738285850301,-500.0,0.00019315,3]
[351012832,1738285850311,-500.0,0.00019315,3]
[351012833,1738285850321,-500.0,0.00019315,3]
[351012834,1738285850331,-500.0,0.00019315,3]
[351012835,1738285850340,-519.19,0.00019315,3]
[351012836,1738285850350,-500.0,0.00019315,3]
[351012837,1738285850360,-1495.48,0.00019315,3]
[351012838,1738285850375,-500.0,0.00019315,3]
[351012839,1738285850385,-1856.45,0.00019315,3]
[351012840,1738285850395,-817.5,0.00019315,3]
[351012841,1738285850406,-500.0,0.00019315,3]
[351012842,1738285850417,-541.02,0.00019315,3]
[351012843,1738285850433,-1287.68,0.00019315,3]
[351012844,1738285850445,-1322.62,0.00019315,3]
[351012845,1738285850456,-524.86,0.00019315,3]
[351012846,1738285850467,-1287.13,0.00019315,3]
[351012847,1738285850477,-500.0,0.00019315,3]
[351012848,1738285850488,-500.0,0.00019315,3]
[351012849,1738285850499,-798.55,0.00019315,3]
[351012850,1738285850510,-500.0,0.00019315,3]
[351012851,1738285850521,-500.0,0.00019315,3]
[351012852,1738285850531,-577.42,0.00019315,3]
[351012853,1738285850542,-663.8,0.00019315,3]
[351012854,1738285850553,-663.87,0.00019315,3]
[351012855,1738285850563,-500.0,0.00019315,3]
[351012856,1738285850574,-842.35,0.00019315,3]